[Event "Early-Titled-Tuesday-Blitz-January-16-2024"]
[Site "Chess.com"]
[Date "2024.01.16"]
[Round "1"]
[White "K_A_S_T_O_R"]
[Black "Mistango"]
[Result "1-0"]
[WhiteElo "2914"]
[BlackElo "2490"]
[TimeControl "180+1"]
[EndTime "8:08:43 PST"]
[Termination "K_A_S_T_O_R won on time"]

1. e4 {[%clk 0:03:00.9]} 1... e5 {[%clk 0:02:58.5]} 2. Nf3 {[%clk 0:03:00.5]}
2... Nc6 {[%clk 0:02:58.3]} 3. Bb5 {[%clk 0:03:00.4]} 3... Nf6 {[%clk
0:02:58.3]} 4. d3 {[%clk 0:03:00.4]} 4... Ne7 {[%clk 0:02:55]} 5. O-O {[%clk
0:02:58.8]} 5... c6 {[%clk 0:02:54.4]} 6. Ba4 {[%clk 0:02:58.9]} 6... Ng6 {[%clk
0:02:52.2]} 7. c3 {[%clk 0:02:58]} 7... Be7 {[%clk 0:02:50]} 8. Re1 {[%clk
0:02:57.9]} 8... O-O {[%clk 0:02:48.9]} 9. Nbd2 {[%clk 0:02:58]} 9... d6 {[%clk
0:02:47.2]} 10. Nf1 {[%clk 0:02:57.1]} 10... Nd7 {[%clk 0:02:43.2]} 11. Ng3
{[%clk 0:02:56.3]} 11... Nc5 {[%clk 0:02:42.5]} 12. Bc2 {[%clk 0:02:56.5]} 12...
Ne6 {[%clk 0:02:41.7]} 13. Nf5 {[%clk 0:02:54.9]} 13... Bf6 {[%clk 0:02:25.5]}
14. d4 {[%clk 0:02:50.9]} 14... Qc7 {[%clk 0:02:22]} 15. g3 {[%clk 0:02:47.6]}
15... Bd7 {[%clk 0:02:12.3]} 16. d5 {[%clk 0:02:41]} 16... Nc5 {[%clk
0:01:56.9]} 17. dxc6 {[%clk 0:02:27.4]} 17... Bxc6 {[%clk 0:01:54.6]} 18. Qxd6
{[%clk 0:02:24.3]} 18... Qxd6 {[%clk 0:01:49.9]} 19. Nxd6 {[%clk 0:02:23.2]}
19... Rfd8 {[%clk 0:01:43.6]} 20. Nf5 {[%clk 0:02:15.7]} 20... Nd3 {[%clk
0:01:42]} 21. Re3 {[%clk 0:02:09.4]} 21... Nxc1 {[%clk 0:01:36.1]} 22. Rxc1
{[%clk 0:02:08.5]} 22... Rd7 {[%clk 0:01:35.9]} 23. Rd3 {[%clk 0:02:05]} 23...
Rad8 {[%clk 0:01:35.6]} 24. Rxd7 {[%clk 0:02:04.5]} 24... Rxd7 {[%clk
0:01:36.5]} 25. Ne3 {[%clk 0:02:01.6]} 25... Nf8 {[%clk 0:01:22.9]} 26. Ng4
{[%clk 0:01:56.4]} 26... Ne6 {[%clk 0:01:21.9]} 27. Ngxe5 {[%clk 0:01:55.5]}
27... Bxe5 {[%clk 0:01:16.4]} 28. Nxe5 {[%clk 0:01:55.9]} 28... Rd2 {[%clk
0:01:17]} 29. Nf3 {[%clk 0:01:47.4]} 29... Rd8 {[%clk 0:01:14.8]} 30. Re1 {[%clk
0:01:46.6]} 30... g5 {[%clk 0:01:08.2]} 31. h3 {[%clk 0:01:45.3]} 31... h6
{[%clk 0:01:06.1]} 32. Re2 {[%clk 0:01:44.7]} 32... Kg7 {[%clk 0:01:03.3]} 33.
Rd2 {[%clk 0:01:44.4]} 33... Re8 {[%clk 0:01:02.8]} 34. Nd4 {[%clk 0:01:42.9]}
34... Kf6 {[%clk 0:00:59]} 35. Nxe6 {[%clk 0:01:40]} 35... Kxe6 {[%clk
0:00:54.3]} 36. f4 {[%clk 0:01:37.3]} 36... f6 {[%clk 0:00:51.4]} 37. Kf2 {[%clk
0:01:36.1]} 37... a5 {[%clk 0:00:49.5]} 38. a3 {[%clk 0:01:33.6]} 38... Ke7
{[%clk 0:00:48.3]} 39. Re2 {[%clk 0:01:27.2]} 39... Bd7 {[%clk 0:00:45.7]} 40.
h4 {[%clk 0:01:25.5]} 40... gxh4 {[%clk 0:00:42.9]} 41. gxh4 {[%clk 0:01:25]}
41... Rg8 {[%clk 0:00:43.8]} 42. f5 {[%clk 0:01:13.6]} 42... Rg4 {[%clk
0:00:41.4]} 43. Kf3 {[%clk 0:01:10.2]} 43... Rxh4 {[%clk 0:00:40.4]} 44. e5
{[%clk 0:01:05.5]} 44... Rh5 {[%clk 0:00:26.7]} 45. Kg4 {[%clk 0:00:47.7]} 45...
Rg5+ {[%clk 0:00:25.7]} 46. Kf4 {[%clk 0:00:48.2]} 46... Rg1 {[%clk 0:00:26]}
47. e6 {[%clk 0:00:46.1]} 47... Be8 {[%clk 0:00:23.6]} 48. Rh2 {[%clk
0:00:46.4]} 48... h5 {[%clk 0:00:23]} 49. Be4 {[%clk 0:00:46.5]} 49... b6 {[%clk
0:00:21.1]} 50. Bf3 {[%clk 0:00:46.1]} 50... Rf1 {[%clk 0:00:20.7]} 51. Ke3
{[%clk 0:00:45.5]} 51... Re1+ {[%clk 0:00:20.1]} 52. Kd4 {[%clk 0:00:44.7]}
52... Re5 {[%clk 0:00:18.4]} 53. Be4 {[%clk 0:00:42.8]} 53... Rc5 {[%clk
0:00:17.6]} 54. b4 {[%clk 0:00:42.7]} 54... Rc8 {[%clk 0:00:16.4]} 55. bxa5
{[%clk 0:00:41.6]} 55... Rd8+ {[%clk 0:00:14.4]} 56. Bd5 {[%clk 0:00:40.5]}
56... bxa5 {[%clk 0:00:10.3]} 57. Rb2 {[%clk 0:00:39.1]} 57... Rc8 {[%clk
0:00:07.9]} 58. Rb7+ {[%clk 0:00:36.2]} 58... Kd6 {[%clk 0:00:07.9]} 59. c4
{[%clk 0:00:36.7]} 59... h4 {[%clk 0:00:07.1]} 60. Rh7 {[%clk 0:00:33.6]} 60...
Rc5 {[%clk 0:00:04]} 61. Rxh4 {[%clk 0:00:30.4]} 61... Bc6 {[%clk 0:00:03.9]}
62. Rh7 {[%clk 0:00:27.4]} 62... Bxd5 {[%clk 0:00:03]} 63. Rd7+ {[%clk
0:00:27.4]} 63... Kc6 {[%clk 0:00:03.5]} 64. cxd5+ {[%clk 0:00:26.7]} 64... Kb6
{[%clk 0:00:02.9]} 65. Rb7+ {[%clk 0:00:25.1]} 65... Kxb7 {[%clk 0:00:02.5]} 66.
Kxc5 {[%clk 0:00:25.3]} 66... Kc7 {[%clk 0:00:03.4]} 67. d6+ {[%clk 0:00:25.7]}
67... Kd8 {[%clk 0:00:02.9]} 68. Kb5 {[%clk 0:00:25.6]} 1-0

[Event "Early-Titled-Tuesday-Blitz-January-16-2024"]
[Site "Chess.com"]
[Date "2024.01.16"]
[Round "1"]
[White "Manukyan_Artak"]
[Black "MagnusCarlsen"]
[Result "1/2-1/2"]
[WhiteElo "2555"]
[BlackElo "3319"]
[TimeControl "180+1"]
[EndTime "8:08:48 PST"]
[Termination "Game drawn - insufficient material"]

1. e4 {[%clk 0:02:57.3]} 1... c5 {[%clk 0:02:58.4]} 2. Nf3 {[%clk 0:02:57]} 2...
d6 {[%clk 0:02:56.8]} 3. Bb5+ {[%clk 0:02:56.5]} 3... Bd7 {[%clk 0:02:54.7]} 4.
Bxd7+ {[%clk 0:02:56]} 4... Qxd7 {[%clk 0:02:55.6]} 5. c4 {[%clk 0:02:56.5]}
5... e5 {[%clk 0:02:54.4]} 6. Nc3 {[%clk 0:02:55.5]} 6... Nc6 {[%clk 0:02:54.9]}
7. d3 {[%clk 0:02:52.6]} 7... Be7 {[%clk 0:02:54.9]} 8. Nd5 {[%clk 0:02:37.4]}
8... Bd8 {[%clk 0:02:53.9]} 9. O-O {[%clk 0:02:35.1]} 9... Nge7 {[%clk
0:02:49.6]} 10. Rb1 {[%clk 0:02:33.1]} 10... O-O {[%clk 0:02:46.8]} 11. a3
{[%clk 0:02:33.1]} 11... a5 {[%clk 0:02:47]} 12. Bd2 {[%clk 0:02:31.5]} 12... a4
{[%clk 0:02:42.3]} 13. Nc3 {[%clk 0:02:27.7]} 13... f5 {[%clk 0:02:39.2]} 14.
Re1 {[%clk 0:02:16.8]} 14... Nd4 {[%clk 0:02:19.6]} 15. Nxd4 {[%clk 0:02:14.4]}
15... cxd4 {[%clk 0:02:19]} 16. Nd5 {[%clk 0:02:14.4]} 16... Nxd5 {[%clk
0:02:18.7]} 17. cxd5 {[%clk 0:02:12.9]} 17... fxe4 {[%clk 0:02:18.5]} 18. dxe4
{[%clk 0:02:12.1]} 18... Ba5 {[%clk 0:02:12.3]} 19. f3 {[%clk 0:02:03.6]} 19...
Rfc8 {[%clk 0:02:10.5]} 20. Rc1 {[%clk 0:02:00.7]} 20... Rxc1 {[%clk 0:02:09.7]}
21. Qxc1 {[%clk 0:01:58.2]} 21... Rc8 {[%clk 0:02:09.8]} 22. Qd1 {[%clk
0:01:58.1]} 22... Bxd2 {[%clk 0:02:10.1]} 23. Qxd2 {[%clk 0:01:58.3]} 23... Qb5
{[%clk 0:02:10.4]} 24. Rc1 {[%clk 0:01:55.9]} 24... Rc4 {[%clk 0:02:07.4]} 25.
Kf2 {[%clk 0:01:49.7]} 25... h6 {[%clk 0:02:01.4]} 26. h4 {[%clk 0:01:48.1]}
26... Qc5 {[%clk 0:01:57.5]} 27. Rxc4 {[%clk 0:01:47.2]} 27... Qxc4 {[%clk
0:01:58.4]} 28. Qb4 {[%clk 0:01:31.7]} 28... Qxb4 {[%clk 0:01:51.5]} 29. axb4
{[%clk 0:01:31.7]} 29... g5 {[%clk 0:01:51.6]} 30. h5 {[%clk 0:01:23.2]} 30...
Kf7 {[%clk 0:01:51.2]} 31. Ke2 {[%clk 0:01:23.5]} 31... Ke7 {[%clk 0:01:51.2]}
32. Kd3 {[%clk 0:01:23.6]} 32... Kd7 {[%clk 0:01:50.8]} 33. Kc4 {[%clk
0:01:23.5]} 33... Kc7 {[%clk 0:01:48.2]} 34. g3 {[%clk 0:01:17.2]} 34... Kd8
{[%clk 0:01:39.4]} 35. f4 {[%clk 0:01:04.7]} 35... exf4 {[%clk 0:01:36]} 36.
gxf4 {[%clk 0:01:05]} 36... gxf4 {[%clk 0:01:36.9]} 37. Kxd4 {[%clk 0:01:05]}
37... Ke7 {[%clk 0:01:37.6]} 38. b5 {[%clk 0:00:55.2]} 38... Kf6 {[%clk
0:01:35.7]} 39. b6 {[%clk 0:00:52.2]} 39... Kg5 {[%clk 0:00:50.7]} 40. e5 {[%clk
0:00:31.5]} 40... dxe5+ {[%clk 0:00:50.9]} 41. Kxe5 {[%clk 0:00:32.4]} 41... f3
{[%clk 0:00:51.8]} 42. d6 {[%clk 0:00:32.7]} 42... f2 {[%clk 0:00:52.6]} 43. d7
{[%clk 0:00:33.2]} 43... f1=Q {[%clk 0:00:53.5]} 44. d8=Q+ {[%clk 0:00:33.3]}
44... Kxh5 {[%clk 0:00:54.4]} 45. Qe8+ {[%clk 0:00:25.2]} 45... Kh4 {[%clk
0:00:53.9]} 46. Qe7+ {[%clk 0:00:24.9]} 46... Kg3 {[%clk 0:00:53.4]} 47. Qxb7
{[%clk 0:00:24.6]} 47... Qb5+ {[%clk 0:00:50.3]} 48. Kd6 {[%clk 0:00:24]} 48...
Qxb2 {[%clk 0:00:48.5]} 49. Qc7 {[%clk 0:00:20.3]} 49... a3 {[%clk 0:00:48.7]}
50. b7 {[%clk 0:00:20.6]} 50... a2 {[%clk 0:00:49]} 51. b8=Q {[%clk 0:00:18.9]}
51... Qxb8 {[%clk 0:00:49.9]} 52. Qxb8 {[%clk 0:00:19.2]} 52... a1=Q {[%clk
0:00:50.6]} 53. Ke6+ {[%clk 0:00:18.2]} 53... Kg2 {[%clk 0:00:45.7]} 54. Qb7+
{[%clk 0:00:17.5]} 54... Kf2 {[%clk 0:00:41.6]} 55. Qb6+ {[%clk 0:00:15.6]}
55... Kf3 {[%clk 0:00:39.9]} 56. Qb3+ {[%clk 0:00:13.7]} 56... Kf4 {[%clk
0:00:39.6]} 57. Qc4+ {[%clk 0:00:11.7]} 57... Ke3 {[%clk 0:00:39.8]} 58. Qc5+
{[%clk 0:00:10.4]} 58... Kd3 {[%clk 0:00:33.5]} 59. Qf5+ {[%clk 0:00:06.9]}
59... Kc4 {[%clk 0:00:33]} 60. Kf7 {[%clk 0:00:05.8]} 60... Qh8 {[%clk
0:00:24.3]} 61. Kg6 {[%clk 0:00:04.3]} 61... h5 {[%clk 0:00:20.5]} 62. Qxh5
{[%clk 0:00:03.7]} 62... Qe8+ {[%clk 0:00:21]} 63. Kg5 {[%clk 0:00:03.9]} 63...
Qe3+ {[%clk 0:00:20.7]} 64. Kh4 {[%clk 0:00:04.8]} 64... Qf2+ {[%clk 0:00:20.6]}
65. Kg5 {[%clk 0:00:04.8]} 65... Qd2+ {[%clk 0:00:19.5]} 66. Kg6 {[%clk
0:00:05.2]} 66... Qg2+ {[%clk 0:00:17.8]} 67. Kh6 {[%clk 0:00:05.2]} 67... Kd4
{[%clk 0:00:17.1]} 68. Qg5 {[%clk 0:00:06.1]} 68... Qh2+ {[%clk 0:00:16.8]} 69.
Kg6 {[%clk 0:00:06.3]} 69... Qc2+ {[%clk 0:00:15.8]} 70. Kh5 {[%clk 0:00:07.2]}
70... Qh7+ {[%clk 0:00:14.5]} 71. Qh6 {[%clk 0:00:07.8]} 71... Qf7+ {[%clk
0:00:14.7]} 72. Qg6 {[%clk 0:00:07.7]} 72... Qd5+ {[%clk 0:00:15.4]} 73. Qg5
{[%clk 0:00:07.8]} 73... Qa2 {[%clk 0:00:12.6]} 74. Qg4+ {[%clk 0:00:08.7]}
74... Ke5 {[%clk 0:00:12.6]} 75. Kh4 {[%clk 0:00:09.6]} 75... Qd5 {[%clk
0:00:11.8]} 76. Qg5+ {[%clk 0:00:10]} 76... Kd6 {[%clk 0:00:12.7]} 77. Qxd5+
{[%clk 0:00:10.4]} 77... Kxd5 {[%clk 0:00:13.6]} 1/2-1/2

[Event "Early-Titled-Tuesday-Blitz-January-16-2024"]
[Site "Chess.com"]
[Date "2024.01.16"]
[Round "1"]
[White "NowInChess"]
[Black "GiorgianBarbosa"]
[Result "1-0"]
[WhiteElo "2289"]
[BlackElo "2599"]
[TimeControl "180+1"]
[EndTime "8:08:53 PST"]
[Termination "NowInChess won by resignation"]

1. e4 {[%clk 0:03:00.9]} 1... c5 {[%clk 0:02:59.4]} 2. d3 {[%clk 0:03:00.8]}
2... g6 {[%clk 0:03:00.3]} 3. g3 {[%clk 0:03:01.1]} 3... Bg7 {[%clk 0:02:59.7]}
4. Bg2 {[%clk 0:03:01.7]} 4... Nc6 {[%clk 0:03:00.2]} 5. f4 {[%clk 0:03:02.2]}
5... e6 {[%clk 0:02:58.5]} 6. Nf3 {[%clk 0:03:02.5]} 6... Nge7 {[%clk
0:02:59.4]} 7. O-O {[%clk 0:03:02]} 7... O-O {[%clk 0:02:59.7]} 8. c3 {[%clk
0:03:02.2]} 8... Rb8 {[%clk 0:02:58.9]} 9. Be3 {[%clk 0:03:00.9]} 9... d6 {[%clk
0:02:58.8]} 10. d4 {[%clk 0:03:00.4]} 10... cxd4 {[%clk 0:02:58]} 11. cxd4
{[%clk 0:03:01.3]} 11... d5 {[%clk 0:02:54.8]} 12. e5 {[%clk 0:03:01.1]} 12...
b6 {[%clk 0:02:52.6]} 13. Nc3 {[%clk 0:02:58.8]} 13... Ba6 {[%clk 0:02:47.1]}
14. Re1 {[%clk 0:02:58.5]} 14... Rc8 {[%clk 0:02:43.5]} 15. Rc1 {[%clk
0:02:52.2]} 15... Nb4 {[%clk 0:02:43]} 16. Qa4 {[%clk 0:02:46.2]} 16... Nec6
{[%clk 0:02:11.5]} 17. a3 {[%clk 0:02:39]} 17... b5 {[%clk 0:02:10]} 18. Qd1
{[%clk 0:02:25.6]} 18... Qe7 {[%clk 0:02:02.1]} 19. axb4 {[%clk 0:02:19]} 19...
Qxb4 {[%clk 0:02:03]} 20. Qd2 {[%clk 0:02:06.6]} 20... Na5 {[%clk 0:02:01.1]}
21. Nxd5 {[%clk 0:01:49.1]} 21... Qa4 {[%clk 0:01:35.9]} 22. Ne7+ {[%clk
0:01:45.3]} 22... Kh8 {[%clk 0:01:33.4]} 23. Nxc8 {[%clk 0:01:45]} 23... Nb3
{[%clk 0:01:27.9]} 24. Qc2 {[%clk 0:01:26.3]} 24... Bxc8 {[%clk 0:01:03.7]} 25.
Qxc8 {[%clk 0:01:27.2]} 25... Rxc8 {[%clk 0:00:53.8]} 26. Rxc8+ {[%clk
0:01:28.1]} 26... Bf8 {[%clk 0:00:54.1]} 27. Rxf8+ {[%clk 0:01:28.6]} 27... Kg7
{[%clk 0:00:55]} 28. Rc8 {[%clk 0:01:20.4]} 28... Na5 {[%clk 0:00:48.7]} 29. Ng5
{[%clk 0:00:52]} 29... Nc4 {[%clk 0:00:40.9]} 30. Ne4 {[%clk 0:00:43]} 30... Qc2
{[%clk 0:00:28.8]} 31. Nd6 {[%clk 0:00:22.8]} 31... Qxb2 {[%clk 0:00:27.4]} 32.
Nxc4 {[%clk 0:00:20.6]} 32... bxc4 {[%clk 0:00:25.5]} 33. Rxc4 {[%clk
0:00:21.4]} 33... a5 {[%clk 0:00:25]} 34. Bf2 {[%clk 0:00:15.6]} 34... Qb3
{[%clk 0:00:22.1]} 35. Rec1 {[%clk 0:00:12.5]} 35... a4 {[%clk 0:00:20.5]} 36.
R4c3 {[%clk 0:00:12.8]} 36... Qb4 {[%clk 0:00:19.8]} 37. R3c2 {[%clk 0:00:10.8]}
37... Qb3 {[%clk 0:00:14.8]} 38. Re2 {[%clk 0:00:09.2]} 38... h5 {[%clk
0:00:13.6]} 39. Ra1 {[%clk 0:00:08.6]} 39... h4 {[%clk 0:00:14]} 40. Rea2 {[%clk
0:00:08.1]} 40... Qd3 {[%clk 0:00:10]} 41. Rxa4 {[%clk 0:00:07]} 41... Qf5
{[%clk 0:00:10.5]} 42. R4a2 {[%clk 0:00:05.8]} 42... h3 {[%clk 0:00:10.8]} 43.
Bf3 {[%clk 0:00:05.5]} 43... Qd3 {[%clk 0:00:09.9]} 44. Be2 {[%clk 0:00:05.1]}
44... Qe4 {[%clk 0:00:09.8]} 45. Bf1 {[%clk 0:00:05.6]} 45... g5 {[%clk
0:00:09.6]} 46. Bxh3 {[%clk 0:00:05.6]} 46... gxf4 {[%clk 0:00:09.4]} 47. gxf4
{[%clk 0:00:06.2]} 47... Qxf4 {[%clk 0:00:09.9]} 48. Bf1 {[%clk 0:00:06.5]}
48... Qg4+ {[%clk 0:00:09.2]} 49. Bg3 {[%clk 0:00:07.4]} 49... Qe4 {[%clk
0:00:09.6]} 50. Bg2 {[%clk 0:00:06.6]} 50... Qe3+ {[%clk 0:00:09.9]} 51. Bf2
{[%clk 0:00:07.3]} 51... Qf4 {[%clk 0:00:09.8]} 52. Ra7 {[%clk 0:00:07.9]} 52...
Kg6 {[%clk 0:00:09.4]} 53. Rd7 {[%clk 0:00:07.7]} 53... f5 {[%clk 0:00:08.1]}
54. Raa7 {[%clk 0:00:08.2]} 54... Qc1+ {[%clk 0:00:07.5]} 55. Bf1 {[%clk
0:00:07.5]} 55... Qg5+ {[%clk 0:00:08]} 56. Kh1 {[%clk 0:00:07.8]} 56... Qf4
{[%clk 0:00:06.4]} 57. Rg7+ {[%clk 0:00:07.9]} 57... Kh5 {[%clk 0:00:06.8]} 58.
Rh7+ {[%clk 0:00:07.9]} 58... Kg4 {[%clk 0:00:07.4]} 59. Rag7+ {[%clk
0:00:07.6]} 59... Kf3 {[%clk 0:00:08.3]} 60. Bg3 {[%clk 0:00:06.7]} 60... Qe4
{[%clk 0:00:07.9]} 61. Bg2+ {[%clk 0:00:07]} 61... Ke3 {[%clk 0:00:07.1]} 62.
Bxe4 {[%clk 0:00:07.9]} 62... fxe4 {[%clk 0:00:07.4]} 63. Rd7 {[%clk 0:00:08.8]}
63... Kf3 {[%clk 0:00:06.8]} 64. Rh4 {[%clk 0:00:09.7]} 64... e3 {[%clk
0:00:07.7]} 65. Rf4+ {[%clk 0:00:09.7]} 65... Ke2 {[%clk 0:00:08]} 66. Rf6
{[%clk 0:00:10.4]} 66... Kd3 {[%clk 0:00:08.7]} 67. Rxe6 {[%clk 0:00:10.9]}
67... e2 {[%clk 0:00:09.6]} 68. Rf6 {[%clk 0:00:11.2]} 68... Kd2 {[%clk
0:00:10.5]} 69. Bf2 {[%clk 0:00:11.3]} 69... Kd1 {[%clk 0:00:10.7]} 70. Rf5
{[%clk 0:00:10.8]} 70... Kd2 {[%clk 0:00:11.6]} 71. e6 {[%clk 0:00:11]} 71...
Kd3 {[%clk 0:00:12.4]} 72. e7 {[%clk 0:00:11.3]} 72... Ke4 {[%clk 0:00:13.3]}
73. Be1 {[%clk 0:00:10.8]} 73... Kxf5 {[%clk 0:00:14.2]} 74. e8=Q {[%clk
0:00:11.3]} 74... Kf4 {[%clk 0:00:13.7]} 75. Rf7+ {[%clk 0:00:11.6]} 1-0

[Event "Early-Titled-Tuesday-Blitz-January-16-2024"]
[Site "Chess.com"]
[Date "2024.01.16"]
[Round "1"]
[White "otrov-11"]
[Black "GMSrinath"]
[Result "1/2-1/2"]
[WhiteElo "2466"]
[BlackElo "2822"]
[TimeControl "180+1"]
[EndTime "8:08:55 PST"]
[Termination "Game drawn by repetition"]

1. d4 {[%clk 0:03:00.9]} 1... f5 {[%clk 0:02:57]} 2. c4 {[%clk 0:03:00.6]} 2...
Nf6 {[%clk 0:02:51.4]} 3. g3 {[%clk 0:03:00.4]} 3... g6 {[%clk 0:02:51.7]} 4.
Bg2 {[%clk 0:03:00.5]} 4... Bg7 {[%clk 0:02:51.5]} 5. Nf3 {[%clk 0:03:01.1]}
5... O-O {[%clk 0:02:51.8]} 6. O-O {[%clk 0:03:01.8]} 6... d6 {[%clk 0:02:52.2]}
7. Nc3 {[%clk 0:03:02.4]} 7... Nc6 {[%clk 0:02:51]} 8. Qc2 {[%clk 0:02:23.6]}
8... e5 {[%clk 0:02:47.4]} 9. dxe5 {[%clk 0:02:11.6]} 9... Nxe5 {[%clk
0:02:48.3]} 10. b3 {[%clk 0:02:04.1]} 10... Qe7 {[%clk 0:01:58.3]} 11. Bb2
{[%clk 0:02:01.8]} 11... Nxf3+ {[%clk 0:01:29.2]} 12. Bxf3 {[%clk 0:01:52.5]}
12... f4 {[%clk 0:01:29.6]} 13. Nd5 {[%clk 0:01:46.3]} 13... Nxd5 {[%clk
0:01:28.7]} 14. Bxd5+ {[%clk 0:01:47.2]} 14... Kh8 {[%clk 0:01:29.6]} 15. Bxg7+
{[%clk 0:01:42.1]} 15... Qxg7 {[%clk 0:01:30.5]} 16. Bg2 {[%clk 0:01:30.6]}
16... Rb8 {[%clk 0:01:24.5]} 17. Rad1 {[%clk 0:01:28.2]} 17... Bf5 {[%clk
0:01:22.7]} 18. Qc1 {[%clk 0:01:25.7]} 18... fxg3 {[%clk 0:01:22.8]} 19. hxg3
{[%clk 0:01:26.6]} 19... b6 {[%clk 0:01:22.9]} 20. Rfe1 {[%clk 0:01:10.8]} 20...
Rbe8 {[%clk 0:01:21.9]} 21. Rd2 {[%clk 0:00:58.5]} 21... Re5 {[%clk 0:01:20.4]}
22. e3 {[%clk 0:00:52.7]} 22... a5 {[%clk 0:01:20.2]} 23. Rd4 {[%clk 0:00:50.9]}
23... h5 {[%clk 0:01:20.1]} 24. Qd2 {[%clk 0:00:49.5]} 24... Qf6 {[%clk
0:01:19.5]} 25. Rh4 {[%clk 0:00:45]} 25... Kg7 {[%clk 0:01:19.4]} 26. Rd4 {[%clk
0:00:43.2]} 26... Be6 {[%clk 0:01:17.9]} 27. a3 {[%clk 0:00:38.4]} 27... Rc5
{[%clk 0:01:02.4]} 28. Rc1 {[%clk 0:00:36.6]} 28... g5 {[%clk 0:00:53.7]} 29. b4
{[%clk 0:00:35.8]} 29... Rf5 {[%clk 0:00:53.4]} 30. f4 {[%clk 0:00:29.7]} 30...
axb4 {[%clk 0:00:33.1]} 31. axb4 {[%clk 0:00:30.6]} 31... Qh6 {[%clk 0:00:33.5]}
32. e4 {[%clk 0:00:28.8]} 32... R5f7 {[%clk 0:00:34]} 33. f5 {[%clk 0:00:29.3]}
33... Bd7 {[%clk 0:00:31.4]} 34. c5 {[%clk 0:00:29.8]} 34... bxc5 {[%clk
0:00:18.4]} 35. bxc5 {[%clk 0:00:30.7]} 35... d5 {[%clk 0:00:17.7]} 36. Rxd5
{[%clk 0:00:30]} 36... Bc6 {[%clk 0:00:18.3]} 37. Re5 {[%clk 0:00:27.5]} 37...
Qf6 {[%clk 0:00:17.4]} 38. Re6 {[%clk 0:00:27.8]} 38... Qd8 {[%clk 0:00:16.1]}
39. Qxd8 {[%clk 0:00:27]} 39... Rxd8 {[%clk 0:00:17]} 40. Rxc6 {[%clk
0:00:27.6]} 40... Rd2 {[%clk 0:00:16.4]} 41. Rg6+ {[%clk 0:00:27.3]} 41... Kh7
{[%clk 0:00:16.3]} 42. Rxg5 {[%clk 0:00:28.2]} 42... Rfd7 {[%clk 0:00:16.9]} 43.
Rxh5+ {[%clk 0:00:28.1]} 43... Kg7 {[%clk 0:00:17.8]} 44. Rg5+ {[%clk
0:00:27.8]} 44... Kf6 {[%clk 0:00:17.4]} 45. Rg6+ {[%clk 0:00:28.4]} 45... Ke5
{[%clk 0:00:18.3]} 46. Re6+ {[%clk 0:00:28.8]} 46... Kd4 {[%clk 0:00:18.9]} 47.
c6 {[%clk 0:00:29.2]} 47... Rg7 {[%clk 0:00:19]} 48. Rg6 {[%clk 0:00:25.5]}
48... Rf7 {[%clk 0:00:17.8]} 49. f6 {[%clk 0:00:23.5]} 49... Ke5 {[%clk
0:00:15.8]} 50. Rf1 {[%clk 0:00:23.2]} 50... Rd6 {[%clk 0:00:12.9]} 51. Rf5+
{[%clk 0:00:23.4]} 51... Ke6 {[%clk 0:00:12]} 52. Rf4 {[%clk 0:00:20.5]} 52...
Rxc6 {[%clk 0:00:11.3]} 53. Rg7 {[%clk 0:00:21.1]} 53... Rc1+ {[%clk 0:00:10.6]}
54. Kh2 {[%clk 0:00:21.1]} 54... Rxf6 {[%clk 0:00:09.8]} 55. Rxf6+ {[%clk
0:00:20.1]} 55... Kxf6 {[%clk 0:00:10.7]} 56. Rd7 {[%clk 0:00:19.9]} 56... c5
{[%clk 0:00:10.5]} 57. Rc7 {[%clk 0:00:19.7]} 57... Ke5 {[%clk 0:00:07.4]} 58.
Kh3 {[%clk 0:00:20.1]} 58... c4 {[%clk 0:00:07.2]} 59. Kg4 {[%clk 0:00:20.4]}
59... c3 {[%clk 0:00:07.1]} 60. Bf3 {[%clk 0:00:20.8]} 60... Kd4 {[%clk
0:00:07.3]} 61. Kf4 {[%clk 0:00:20.5]} 61... Re1 {[%clk 0:00:03.6]} 62. Rd7+
{[%clk 0:00:19.4]} 62... Kc4 {[%clk 0:00:03.6]} 63. Rc7+ {[%clk 0:00:19.9]}
63... Kd3 {[%clk 0:00:03.8]} 64. e5 {[%clk 0:00:20.1]} 64... c2 {[%clk
0:00:03.1]} 65. Kf5 {[%clk 0:00:13.8]} 65... Rf1 {[%clk 0:00:02]} 66. Kf4 {[%clk
0:00:08.1]} 66... Re1 {[%clk 0:00:02.6]} 67. Rd7+ {[%clk 0:00:06.7]} 67... Kc3
{[%clk 0:00:03]} 68. Rc7+ {[%clk 0:00:07.1]} 68... Kd3 {[%clk 0:00:03.6]}
1/2-1/2